bitfinex-derivatives/quotes_BNBF0:USTF0_20250305
["timestamp","ask_amount","ask_price","bid_price","bid_amount"]
[1741203787598,0.9562612,595.81,594.73,0.33628705]
[1741203787894,1.24225961,595.8,594.73,0.33628705]
[1741203788095,2.19852081,595.8,594.73,0.33628705]
[1741203788294,0.29229942,595.84,594.73,0.33628705]
[1741203788295,2.19852081,595.79,594.73,0.33628705]
[1741203788499,0.9562612,595.78,594.73,0.33628705]
[1741203788801,1.24225961,595.79,594.73,0.33628705]
[1741203788997,1.24225961,595.83,594.73,0.33628705]
[1741203789301,2.44125961,595.83,594.73,0.33628705]
[1741203789497,1.24225961,595.82,594.73,0.33628705]
[1741203789707,2.19852081,595.82,594.73,0.33628705]
[1741203790501,0.95628886,595.81,594.73,0.33628705]
[1741203790704,2.19854847,595.82,594.73,0.33628705]
[1741203791303,0.95628886,595.82,594.73,0.33628705]
[1741203794308,1.199,595.83,594.73,0.33628705]
[1741203797413,1.24225961,595.82,594.73,0.33628705]
[1741203797610,2.19854847,595.82,594.73,0.33628705]
[1741203797810,2.77126048,595.82,594.73,0.33628705]
[1741203798016,0.95628886,595.82,594.73,0.33628705]
[1741203798211,3.68428973,595.83,594.73,0.33628705]
[1741203798808,3.22987498,595.82,594.73,0.33628705]
[1741203799014,2.48528973,595.81,594.73,0.33628705]
[1741203799213,3.72754934,595.81,594.73,0.33628705]
[1741203800014,1.24225961,595.8,594.73,0.33628705]
[1741203801618,1.24225961,595.79,594.73,0.33628705]
[1741203801819,1.24225961,595.8,594.73,0.33628705]
[1741203802516,1.24225961,595.79,594.73,0.33628705]
[1741203803111,1.24225961,595.78,594.73,0.33628705]
[1741203803317,1.24225961,595.77,594.73,0.33628705]
[1741203803715,1.24225961,595.76,594.73,0.33628705]
[1741203804616,1.24225961,595.75,594.73,0.33628705]
[1741203805021,0.95535253,595.74,594.73,0.33628705]
[1741203805320,2.19761214,595.74,594.73,0.33628705]
[1741203805619,0.95535253,595.73,594.73,0.33628705]
[1741203805819,1.24225961,595.73,594.73,0.33628705]
[1741203806219,1.24225961,595.72,594.73,0.33628705]
[1741203807018,1.24225961,595.71,594.73,0.33628705]
[1741203807222,1.24225961,595.7,594.73,0.33628705]
[1741203807621,2.19761214,595.77,594.73,0.33628705]
[1741203807924,0.95535253,595.76,594.73,0.33628705]
[1741203808125,1.24225961,595.77,594.73,0.33628705]
[1741203808518,1.24225961,595.76,594.73,0.33628705]
[1741203809017,1.24225961,595.75,594.73,0.33628705]
[1741203809618,1.24225961,595.74,594.73,0.33628705]
[1741203809820,3.72614171,595.74,594.73,0.33628705]
[1741203810020,0.95533927,595.73,594.73,0.33628705]
[1741203810221,1.24225961,595.74,594.73,0.33628705]
[1741203810523,3.72605105,595.8,594.73,0.33628705]
[1741203810724,2.48379144,595.79,594.73,0.33628705]
[1741203810922,1.24225961,595.78,594.73,0.33628705]
[1741203811717,1.24225961,595.8,594.73,0.33628705]
[1741203811918,3.22987498,595.8,594.73,0.33628705]
[1741203812124,2.48379144,595.79,594.73,0.33628705]
[1741203812623,0.95535957,595.79,594.73,0.33628705]
[1741203812821,1.24225961,595.78,594.73,0.33628705]
[1741203813219,0.95535957,595.79,594.73,0.33628705]
[1741203813422,1.24225961,595.8,594.73,0.33628705]
[1741203813624,1.24225961,595.79,594.73,0.33628705]
[1741203814426,1.24225961,595.8,594.73,0.33628705]
[1741203814925,2.19761918,595.8,594.73,0.33628705]
[1741203815132,2.19761918,595.79,594.73,0.33628705]
[1741203815327,0.95535957,595.78,594.73,0.33628705]
[1741203815629,1.24225961,595.77,594.73,0.33628705]
[1741203816626,1.24225961,595.8,594.73,0.33628705]
[1741203817422,2.4839738,595.81,594.73,0.33628705]
[1741203817423,1.24225961,595.79,594.73,0.33628705]
[1741203818226,1.24225961,595.78,594.73,0.33628705]
[1741203822525,1.24225961,595.77,594.73,0.33628705]
[1741203823128,1.24225961,595.76,594.73,0.33628705]
[1741203823529,1.24225961,595.75,594.73,0.33628705]
[1741203824231,1.24225961,595.8,594.73,0.33628705]
[1741203827229,1.24225961,595.79,594.73,0.33628705]
[1741203827427,1.24225961,595.78,594.73,0.33628705]
[1741203828232,1.24225961,595.77,594.73,0.33628705]
[1741203828631,1.24225961,595.76,594.73,0.33628705]
[1741203830031,0.95560252,595.78,594.73,0.33628705]
[1741203830633,2.19786213,595.78,594.73,0.33628705]
[1741203830935,2.19786213,595.77,594.73,0.33628705]
[1741203831137,0.95560252,595.76,594.73,0.33628705]
[1741203831731,1.24225961,595.75,594.73,0.33628705]
[1741203831931,2.19786213,595.75,594.73,0.33628705]
[1741203832237,2.19786213,595.74,594.73,0.33628705]
[1741203832440,0.95560252,595.73,594.73,0.33628705]
[1741203832634,1.24225961,595.74,594.73,0.33628705]
[1741203832836,1.24225961,595.73,594.73,0.33628705]
[1741203833338,1.24225961,595.72,594.73,0.33628705]
[1741203834133,0.95560252,595.75,594.73,0.33628705]
[1741203834740,1.24225961,595.74,594.73,0.33628705]
[1741203834935,1.24225961,595.73,594.73,0.33628705]
[1741203835544,0.95560252,595.83,594.73,0.33628705]
[1741203835844,1.24225961,595.84,594.73,0.33628705]
[1741203835845,1.245,595.72,594.73,0.33628705]
[1741203837940,1.245,595.72,594.75,1.48803054]
[1741203838245,1.245,595.72,594.76,0.33627009]
[1741203842948,1.24225961,595.71,594.76,0.33627009]
[1741203843145,2.19822639,595.71,594.76,0.33627009]
[1741203843349,0.95596678,595.7,594.76,0.33627009]
[1741203843751,1.24225961,595.69,594.76,0.33627009]
[1741203844653,1.24225961,595.68,594.76,0.33627009]
[1741203845446,2.19822639,595.69,594.76,0.33627009]
[1741203845646,0.95596678,595.68,594.76,0.33627009]
[1741203845849,1.24225961,595.68,594.76,0.33627009]
[1741203846648,1.24225961,595.7,594.76,0.33627009]
[1741203847355,1.24225961,595.69,594.76,0.33627009]
[1741203848055,1.245,595.72,594.76,0.33627009]
[1741203855453,1.245,595.72,594.76,1.82430063]
[1741203856655,1.24225961,595.71,594.76,1.82430063]
[1741203857057,1.24225961,595.71,594.76,0.33627009]
[1741203857257,1.24225961,595.7,594.76,0.33627009]
[1741203857655,1.24225961,595.69,594.76,0.33627009]
[1741203858060,1.24225961,595.68,594.76,0.33627009]
[1741203858657,2.1992168,595.67,594.76,0.33627009]
[1741203858856,0.95695719,595.66,594.76,0.33627009]
[1741203859062,1.24225961,595.67,594.76,0.33627009]
[1741203859263,1.24225961,595.65,594.76,0.33627009]
[1741203859965,1.24225961,595.64,594.76,0.33627009]
[1741203860564,1.24225961,595.63,594.76,0.33627009]
[1741203861166,1.24225961,595.62,594.76,0.33627009]
[1741203861966,2.35725961,595.61,594.76,0.33627009]
[1741203862266,0.95695719,595.6,594.76,0.33627009]
[1741203862666,2.1992168,595.6,594.76,0.33627009]
[1741203863160,1.24225961,595.59,594.76,0.33627009]
[1741203863867,2.1992168,595.6,594.76,0.33627009]
[1741203865362,0.95695719,595.6,594.76,0.33627009]
[1741203865562,1.115,595.61,594.76,0.33627009]
[1741203866263,1.24225961,595.6,594.76,0.33627009]
[1741203866668,2.1992168,595.6,594.76,0.33627009]
[1741203866970,1.24225961,595.59,594.76,0.33627009]
[1741203867369,3.73034831,595.59,594.76,0.33627009]
[1741203867565,1.24225961,595.58,594.76,0.33627009]
[1741203868069,1.24225961,595.57,594.76,0.33627009]
[1741203868466,1.24225961,595.58,594.76,0.33627009]
[1741203870278,1.24225961,595.57,594.76,0.33627009]
[1741203870881,1.24225961,595.56,594.76,0.33627009]
[1741203871081,1.24225961,595.56,594.75,0.29241486]
[1741203871383,1.24225961,595.55,594.75,0.29241486]
[1741203871879,1.24225961,595.54,594.27,1.48803054]
[1741203872079,1.24225961,595.54,594.28,0.33654169]
[1741203872279,1.24225961,595.54,594.28,0.62900816]
[1741203872580,1.98761537,595.6,594.28,0.62900816]
[1741203872581,1.53472608,595.53,594.28,0.62900816]
[1741203873380,1.24225961,595.52,594.28,0.62900816]
[1741203873781,0.29246647,595.53,594.28,0.62900816]
[1741203874787,1.24225961,595.58,594.28,0.33654169]
[1741203874979,1.24225961,595.57,594.28,0.33654169]
[1741203875183,1.24225961,595.57,594.28,0.62898849]
[1741203875382,2.76905686,595.57,594.28,0.62898849]
[1741203875588,0.95424828,595.56,594.28,0.62898849]
[1741203876286,2.19650789,595.56,594.28,0.62898849]
[1741203876488,0.95424828,595.55,594.28,0.62898849]
[1741203876681,0.2924468,595.58,594.28,0.62898849]
[1741203876682,1.53470641,595.58,594.28,0.62898849]
[1741203877880,2.19650789,595.58,594.28,0.33654169]
[1741203878085,0.95424828,595.57,594.28,0.62897498]
[1741203878885,3.5951504,595.61,594.28,0.62897498]
[1741203879087,2.4801504,595.6,594.28,0.62897498]
[1741203879282,0.95424828,595.59,594.28,0.62897498]
[1741203879480,2.06924828,595.61,594.28,0.62897498]
[1741203879680,3.22987498,595.6,594.28,0.62897498]
[1741203879886,2.4801504,595.59,594.28,0.62897498]
[1741203880682,1.24225961,595.58,594.28,0.62897498]
[1741203880886,1.24225961,595.58,594.28,0.33654169]
[1741203881186,2.19650789,595.58,594.28,0.62897498]
[1741203881386,0.95424828,595.57,594.28,0.62897498]
[1741203881585,1.24225961,595.58,594.28,0.62897498]
[1741203885890,1.115,595.61,594.28,0.62897498]
[1741203886889,1.115,595.61,594.28,0.33654169]
[1741203888193,1.115,595.61,594.28,0.62898972]
[1741203889891,1.115,595.61,594.28,0.33654169]
[1741203890096,1.115,595.61,594.28,0.62897129]
[1741203892895,1.115,595.61,594.28,0.33654169]
[1741203893096,1.115,595.61,594.28,0.62897129]
[1741203894897,2.06827942,595.61,594.42,1.48803054]
[1741203895101,1.115,595.61,594.43,0.33645677]
[1741203895402,4.34487498,595.61,594.43,0.33645677]
[1741203895603,0.95327942,595.6,594.43,0.33645677]
[1741203896005,2.06827942,595.61,594.43,0.33645677]
[1741203896404,2.06808252,595.61,594.43,0.33645677]
[1741203896908,2.06808252,595.61,594.47,1.48803054]
[1741203897202,2.06808252,595.61,594.48,0.33642847]
[1741203897704,1.115,595.61,594.48,0.33642847]
[1741203903413,1.115,595.61,594.56,1.48803054]
[1741203903614,1.115,595.61,594.57,0.33637755]
[1741203912216,1.24225961,595.6,594.57,0.33637755]
[1741203912722,4.18338871,595.6,594.57,0.33637755]
[1741203912924,2.48219096,595.59,594.57,0.33637755]
[1741203913316,1.24225961,595.58,594.57,0.33637755]
[1741203914019,1.24225961,595.57,594.57,0.33637755]
[1741203914623,1.24225961,595.56,594.57,0.33637755]
[1741203915320,2.19577334,595.56,594.57,0.33637755]
[1741203915624,1.115,595.61,594.57,0.33637755]
[1741203915625,0.95351373,595.55,594.57,0.33637755]
[1741203915826,1.115,595.61,594.57,0.33637755]
[1741203916124,1.24225961,595.6,594.57,0.33637755]
[1741203916725,2.19577334,595.6,594.57,0.33637755]
[1741203917227,1.24225961,595.59,594.57,0.33637755]
[1741203917428,1.24225961,595.6,594.57,0.33637755]
[1741203917726,3.72991753,595.6,594.57,0.33637755]
[1741203917927,2.48765792,595.59,594.57,0.33637755]
[1741203918127,0.95679151,595.58,594.57,0.33637755]
[1741203918327,3.72991753,595.59,594.57,0.33637755]
[1741203918829,1.24225961,595.58,594.57,0.33637755]
[1741203919230,1.24225961,595.57,594.57,0.33637755]
[1741203919928,1.24225961,595.56,594.57,0.33637755]
[1741203920935,0.956394,595.55,594.57,0.33637755]
[1741203921128,0.956394,595.54,594.57,0.33637755]
[1741203921333,1.24225961,595.54,594.57,0.33637755]
[1741203921634,1.26505337,595.53,594.57,0.33637755]
[1741203921830,0.95629612,595.52,594.57,0.33637755]
[1741203922136,0.95629612,595.51,594.57,0.33637755]
[1741203922435,0.95629612,595.5,594.57,0.33637755]
[1741203922636,0.95629612,595.49,594.57,0.33637755]
[1741203922834,4.1861711,595.48,594.57,0.33637755]
[1741203923034,2.48636991,595.47,594.57,0.33637755]
[1741203923234,0.95629612,595.46,594.57,0.33637755]
[1741203923435,0.95629612,595.45,594.57,0.33637755]
[1741203923635,0.95629612,595.44,594.57,0.33637755]
[1741203924035,1.24225961,595.43,594.57,0.33637755]
[1741203924436,2.19855573,595.43,594.57,0.33637755]
[1741203924636,2.19855573,595.42,594.57,0.33637755]
[1741203924837,1.24225961,595.42,594.57,0.33637755]
[1741203925329,2.1991332,595.51,594.57,0.33637755]
[1741203925735,2.1991332,595.5,594.57,0.33637755]
[1741203925931,0.95687359,595.49,594.57,0.33637755]
[1741203926833,1.24225961,595.48,594.57,0.33637755]
[1741203927235,2.1991332,595.52,594.57,0.33637755]
[1741203927432,0.95687359,595.51,594.57,0.33637755]
[1741203927630,1.24225961,595.52,594.57,0.33637755]
[1741203928240,2.1991332,595.54,594.57,0.33637755]
[1741203929037,1.24225961,595.53,594.57,0.33637755]
[1741203930644,2.1991332,595.54,594.57,0.33637755]
[1741203931144,0.95687359,595.54,594.57,0.33637755]
[1741203931344,2.08787359,595.55,594.57,0.33637755]
[1741203931545,2.08775899,595.55,594.57,0.33637755]
[1741203931941,1.24225961,595.54,594.57,0.33637755]
[1741203932137,2.1990186,595.54,594.57,0.33637755]
[1741203932342,0.95675899,595.54,594.57,0.33637755]
[1741203932544,1.131,595.55,594.57,0.33637755]
[1741203933142,2.48756041,595.62,594.57,0.33637755]
[1741203933445,0.95675899,595.62,594.57,0.33637755]
[1741203933645,1.24225961,595.61,594.57,0.33637755]
[1741203933845,2.1990186,595.61,594.57,0.33637755]
[1741203934038,0.95675899,595.6,594.57,0.33637755]
[1741203934240,1.24225961,595.6,594.57,0.33637755]
[1741203934944,1.24225961,595.59,594.57,0.33637755]
[1741203935343,2.1990186,595.7,594.57,0.33637755]
[1741203935547,0.95675899,595.69,594.57,0.33637755]
[1741203935747,1.24225961,595.7,594.57,0.33637755]
[1741203935946,1.24225961,595.69,594.57,0.33637755]
[1741203936347,1.24225961,595.68,594.57,0.33637755]
[1741203936945,1.021,595.67,594.57,0.33637755]
[1741203944651,1.24225961,595.66,594.57,0.33637755]
[1741203945849,3.72738927,595.66,594.57,0.33637755]
[1741203946050,2.19807871,595.66,594.57,0.33637755]
[1741203946252,0.9558191,595.65,594.57,0.33637755]
[1741203946646,1.24225961,595.66,594.57,0.33637755]
[1741203946848,2.77157181,595.66,594.57,0.33637755]
[1741203947245,0.95582085,595.65,594.57,0.33637755]
[1741203947446,1.24225961,595.65,594.57,0.33637755]
[1741203947653,2.19808046,595.65,594.57,0.33637755]
[1741203947851,1.24225961,595.64,594.57,0.33637755]
[1741203948354,3.72739383,595.64,594.57,0.33637755]
[1741203948547,1.24225961,595.63,594.57,0.33637755]
[1741203949452,1.24225961,595.62,594.57,0.33637755]
[1741203949853,1.24225961,595.61,594.57,0.33637755]
[1741203950356,1.24225961,595.63,594.57,0.33637755]
[1741203950746,2.48513422,595.64,594.57,0.33637755]
[1741203950747,1.24225961,595.62,594.57,0.33637755]
[1741203951255,1.24225961,595.63,594.57,0.33637755]
[1741203951652,1.24225961,595.62,594.57,0.33637755]
[1741203952255,1.24225961,595.63,594.57,0.33637755]
[1741203953055,1.24225961,595.62,594.57,0.33637755]
[1741203953649,1.24225961,595.61,594.57,0.33637755]
[1741203954151,1.24225961,595.63,594.57,0.33637755]
[1741203954851,1.24225961,595.62,594.57,0.33637755]
[1741203955455,1.24225961,595.61,594.57,0.33637755]
[1741203956355,1.24225961,595.63,594.57,0.33637755]
[1741203956851,1.24225961,595.62,594.57,0.33637755]
[1741203957253,1.24225961,595.61,594.57,0.33637755]
[1741203957555,3.7280012,595.62,594.57,0.33637755]
[1741203957855,0.95605446,595.61,594.57,0.33637755]
[1741203958052,1.24225961,595.62,594.57,0.33637755]
[1741203958253,0.95605446,595.63,594.57,0.33637755]
[1741203958749,1.24225961,595.63,594.57,0.33637755]
[1741203959154,3.72792705,595.64,594.57,0.33637755]
[1741203959354,2.19831407,595.64,594.57,0.33637755]
[1741203959552,0.95605446,595.63,594.57,0.33637755]
[1741203959754,2.19831407,595.64,594.57,0.33637755]
[1741203959956,0.95605446,595.63,594.57,0.33637755]
[1741203960152,1.24225961,595.64,594.57,0.33637755]
[1741203960351,2.19831407,595.64,594.57,0.33637755]
[1741203960753,0.95605446,595.64,594.57,0.33637755]
[1741203961152,2.19831407,595.65,594.57,0.33637755]
[1741203963155,1.24225961,595.65,594.57,1.82440809]
[1741203963459,0.95586841,595.65,594.57,1.82440809]
[1741203964262,2.77157181,595.66,594.57,1.82440809]
[1741203964561,1.24225961,595.65,594.57,1.82440809]
[1741203965159,1.5293122,595.66,594.58,1.48803054]
[1741203965359,1.5293122,595.66,594.6,0.33636057]
[1741203967360,1.5293122,595.66,594.66,1.48803054]
[1741203967561,1.5293122,595.66,594.67,0.33632098]
[1741203968061,1.286,595.65,594.67,0.33632098]
[1741203979172,2.52342459,595.65,594.67,0.33632098]
[1741203979670,1.286,595.65,594.67,0.33632098]
[1741203981071,2.52358754,595.65,594.67,0.33632098]
[1741203982170,0.95473833,595.64,594.67,0.33632098]
[1741203983071,3.72052198,595.64,594.67,0.33632098]
[1741203983872,1.23758754,595.63,594.67,0.33632098]
[1741203984070,3.72052198,595.63,594.67,0.33632098]
[1741203984771,1.23758754,595.62,594.67,0.33632098]
[1741203985274,1.23758754,595.61,594.67,0.33632098]
[1741203985971,1.23758754,595.62,594.67,0.33632098]
[1741203986473,1.23758754,595.61,594.67,0.33632098]
[1741203987173,1.23758754,595.62,594.67,0.33632098]
[1741203988374,1.23758754,595.61,594.67,0.33632098]
[1741203989371,1.23758754,595.6,594.67,0.33632098]
[1741203989676,1.23758754,595.59,594.67,0.33632098]
[1741203990275,1.23758754,595.58,594.67,0.33632098]
[1741203990677,0.29240626,595.57,594.67,0.33632098]
[1741203990872,1.5299938,595.57,594.67,0.33632098]
[1741203991475,1.23758754,595.56,594.67,0.33632098]
[1741203992072,0.29240626,595.57,594.67,0.33632098]
[1741203993477,1.23758754,595.59,594.67,0.33632098]
[1741203993775,0.2924038,595.56,594.67,0.33632098]
[1741203996480,1.23758754,595.61,594.67,0.33632098]
[1741203996777,0.29239275,595.59,594.67,0.33632098]
[1741203998274,1.23758754,595.58,594.67,0.33632098]
[1741203998678,0.29239275,595.59,594.67,0.33632098]
[1741203999482,1.23758754,595.61,594.67,0.33632098]
[1741203999879,0.29239029,595.6,594.67,0.33632098]
[1741204001079,1.52997783,595.6,594.67,0.33632098]
[1741204001985,0.29239029,595.6,594.67,0.33632098]
[1741204002581,1.23758754,595.62,594.67,0.33632098]
[1741204007187,3.71862156,595.62,594.67,0.33632098]
[1741204007486,2.48103402,595.61,594.67,0.33632098]
[1741204007688,0.95424385,595.61,594.67,0.33632098]
[1741204007881,1.23758754,595.62,594.67,0.33632098]
[1741204008686,3.71862156,595.62,594.67,0.33632098]
[1741204008881,2.48103402,595.61,594.67,0.33632098]
[1741204009082,1.23758754,595.6,594.67,0.33632098]
[1741204009283,2.19183139,595.6,594.67,0.33632098]
[1741204009481,0.95424385,595.59,594.67,0.33632098]
[1741204009890,0.95424385,595.62,594.67,0.33632098]
[1741204010186,1.23758754,595.63,594.67,0.33632098]
[1741204011186,2.43158754,595.62,594.67,0.33632098]
[1741204011491,1.26296303,595.61,594.67,0.33632098]
[1741204011685,1.24663537,595.61,594.67,0.33632098]
[1741204011889,0.29239152,595.61,594.67,0.33632098]
[1741204012591,0.30872791,595.6,594.67,0.33632098]
[1741204012991,1.23758754,595.59,594.67,0.33632098]
[1741204013191,0.30872791,595.58,594.67,0.33632098]
[1741204013591,1.23758754,595.57,594.67,0.33632098]
[1741204014297,1.23758754,595.58,594.67,0.33632098]
[1741204014493,3.71862156,595.58,594.67,0.33632098]
[1741204014701,2.48103402,595.57,594.67,0.33632098]
[1741204015000,2.19146809,595.57,594.67,0.33632098]
[1741204015195,0.95388055,595.56,594.67,0.33632098]
[1741204016094,0.95388055,595.58,594.67,0.33632098]
[1741204016300,1.53002943,595.59,594.67,0.33632098]
[1741204016495,1.23758754,595.58,594.67,0.33632098]
[1741204017100,1.53002943,595.59,594.67,0.33632098]
[1741204017496,1.23758754,595.59,594.67,0.33632098]
[1741204017696,1.52998274,595.59,594.67,0.33632098]
[1741204018896,4.00943125,595.59,594.67,0.33632098]
[1741204019101,2.47944851,595.58,594.67,0.33632098]
[1741204019302,0.95363404,595.58,594.67,0.33632098]
[1741204019498,1.52998274,595.59,594.67,0.33632098]
[1741204020496,1.23758754,595.59,594.67,0.33632098]
[1741204021703,1.53002451,595.59,594.67,0.33632098]
[1741204022804,2.48365855,595.59,594.67,0.33632098]
[1741204022998,0.95363404,595.58,594.67,0.33632098]
[1741204023211,1.53002451,595.59,594.67,0.33632098]
[1741204023506,1.23758754,595.59,594.67,0.33632098]
[1741204024401,2.19122158,595.59,594.67,0.33632098]
[1741204024601,0.95363404,595.58,594.67,0.33632098]
[1741204024804,1.23758754,595.63,594.67,0.33632098]
[1741204025002,0.30872267,595.62,594.67,0.33632098]
[1741204026502,2.62158754,595.61,594.67,0.33632098]
[1741204026707,1.26205912,595.6,594.67,0.33632098]
[1741204026902,0.30874716,595.59,594.67,0.33632098]
[1741204027112,2.78735826,595.6,594.67,0.33632098]
[1741204027307,1.23758754,595.58,594.67,0.33632098]
[1741204027502,0.30874716,595.57,594.67,0.33632098]
[1741204028509,1.23758754,595.58,594.67,0.33632098]
[1741204028911,1.23758754,595.57,594.67,0.33632098]
[1741204029410,1.23758754,595.56,594.67,0.33632098]
[1741204029809,1.23758754,595.55,594.67,0.33632098]
[1741204030410,1.23758754,595.58,594.67,0.33632098]
[1741204030711,1.23758754,595.57,594.67,0.33632098]
[1741204031710,1.23758754,595.56,594.67,0.33632098]
[1741204032412,1.23758754,595.55,594.67,0.33632098]
[1741204033116,1.23758754,595.54,594.67,0.33632098]
[1741204033313,1.23758754,595.53,594.67,0.33632098]
[1741204034015,1.23758754,595.52,594.67,0.33632098]
[1741204035013,1.23758754,595.51,594.67,0.33632098]
[1741204035913,1.23758754,595.5,594.67,0.33632098]
[1741204036313,2.1908995,595.5,594.67,0.33632098]
[1741204036519,0.95331196,595.49,594.67,0.33632098]
[1741204036711,1.23758754,595.5,594.67,0.33632098]
[1741204036916,2.1908995,595.58,594.67,0.33632098]
[1741204037117,0.95331196,595.57,594.67,0.33632098]
[1741204037316,1.23758754,595.57,594.67,0.33632098]
[1741204038719,2.1908995,595.6,594.67,0.33632098]
[1741204040016,1.23758754,595.59,594.67,0.33632098]
[1741204040730,1.23758754,595.58,594.67,0.33632098]
[1741204041324,1.23758754,595.57,594.67,0.33632098]
[1741204041720,1.23758754,595.56,594.67,0.33632098]
[1741204042623,1.23758754,595.55,594.67,0.33632098]
[1741204043125,1.23758754,595.54,594.67,0.33632098]
[1741204043625,1.23758754,595.53,594.67,0.33632098]
[1741204044127,1.23758754,595.52,594.67,0.33632098]
[1741204044926,1.23758754,595.51,594.67,0.33632098]
[1741204045321,2.19447586,595.54,594.67,0.33632098]
[1741204045526,0.95688832,595.53,594.67,0.33632098]
[1741204045724,1.23758754,595.52,594.67,0.33632098]
[1741204046934,0.9568342,595.55,594.67,0.33632098]
[1741204046935,0.9568342,595.54,594.67,0.33632098]
[1741204047426,1.23758754,595.53,594.67,0.33632098]
[1741204048029,1.23758754,595.52,594.67,0.33632098]
[1741204048730,1.23758754,595.55,594.67,0.33632098]
[1741204049425,1.23758754,595.54,594.67,0.33632098]
[1741204049635,1.23758754,595.53,594.67,0.33632098]
[1741204050023,2.19435975,595.53,594.67,0.33632098]
[1741204050226,0.95677221,595.52,594.67,0.33632098]
[1741204050429,2.19435975,595.52,594.67,0.33632098]
[1741204050731,0.95659077,595.51,594.67,0.33632098]
[1741204050932,1.23758754,595.51,594.67,0.33632098]
[1741204051523,2.19418888,595.5,594.67,0.33632098]
[1741204051729,1.82260134,595.49,594.67,0.33632098]
[1741204051925,2.39677848,595.49,594.67,0.33632098]
[1741204052130,2.19418888,595.48,594.67,0.33632098]
[1741204052329,0.95660134,595.47,594.67,0.33632098]
[1741204052526,1.23758754,595.48,594.67,0.33632098]
[1741204052725,1.23758754,595.46,594.67,0.33632098]
[1741204053126,1.23758754,595.45,594.67,0.33632098]
[1741204053831,1.23758754,595.44,594.67,0.33632098]
[1741204054534,1.23758754,595.43,594.67,0.33632098]
[1741204055430,1.23758754,595.42,594.67,0.33632098]
[1741204055829,1.23758754,595.41,594.67,0.33632098]
[1741204056831,2.1943907,595.41,594.67,0.33632098]
[1741204057031,2.1943907,595.4,594.67,0.33632098]
[1741204057234,0.95680316,595.39,594.67,0.33632098]
[1741204057633,1.23758754,595.38,594.67,0.33632098]
[1741204057833,2.1943907,595.38,594.67,0.33632098]
[1741204058033,1.23758754,595.38,594.67,0.33632098]
[1741204058430,1.23758754,595.37,594.67,0.33632098]
[1741204059136,1.23758754,595.46,594.67,0.33632098]
[1741204059331,2.19435028,595.46,594.67,0.33632098]
[1741204059539,0.95676274,595.45,594.67,0.33632098]
[1741204059732,1.23758754,595.46,594.67,0.33632098]
[1741204060037,1.23758754,595.44,594.67,0.33632098]
[1741204060735,1.23758754,595.43,594.67,0.33632098]
[1741204061537,1.23758754,595.42,594.67,0.33632098]
[1741204062335,1.23758754,595.41,594.66,0.292421]
[1741204062537,1.23758754,595.41,594.27,1.48803054]
[1741204062738,1.23758754,595.41,594.66,0.29249474]
[1741204063036,1.2287221,595.4,594.28,0.33654169]
[1741204063338,0.95660284,595.39,594.28,0.33654169]
[1741204063638,0.95660284,595.38,594.28,0.33654169]
[1741204063839,2.48716739,595.39,594.29,0.29251563]
[1741204064035,0.95660284,595.38,594.29,0.29251563]
[1741204064336,0.95660284,595.38,594.29,0.62905166]
[1741204064741,0.95660284,595.43,594.3,0.33653037]
[1741204064940,2.93977315,595.46,594.3,0.33653037]
[1741204065239,2.48716739,595.45,594.3,0.33653037]
[1741204065439,0.95660284,595.45,594.3,0.33653037]
[1741204065640,0.95660284,595.46,594.3,0.33653037]
[1741204065934,0.95660284,595.47,594.3,0.33653037]
[1741204066532,0.95660284,595.46,594.3,0.33653037]
[1741204066939,0.95660284,595.47,594.3,0.33653037]
[1741204067139,0.95603089,595.47,594.3,0.33653037]
[1741204067341,2.48556097,595.47,594.3,0.33653037]
[1741204067737,1.52957598,595.47,594.3,0.33653037]
[1741204067941,0.95598499,595.47,594.3,0.33653037]
[1741204068141,2.9391553,595.48,594.3,0.33653037]
[1741204068939,0.95598499,595.48,594.3,0.33653037]
[1741204069140,0.866,595.49,594.3,0.33653037]
[1741204077955,1.23941362,595.48,594.34,1.48803054]
[1741204078149,1.23941362,595.48,594.35,0.33650206]
[1741204078947,1.23941362,595.47,594.35,0.33650206]
[1741204079555,1.23941362,595.46,594.35,0.33650206]
[1741204081353,2.19539262,595.46,594.35,0.33650206]
[1741204081558,0.955979,595.45,594.35,0.33650206]
[1741204081855,1.23941362,595.46,594.35,0.33650206]
[1741204082056,0.95500422,595.47,594.35,0.33650206]
[1741204082256,0.866,595.49,594.35,0.33650206]
[1741204083361,0.866,595.49,594.36,1.48803054]
[1741204083861,0.866,595.49,594.37,0.33649073]
[1741204085058,0.866,595.49,594.39,1.48803054]
[1741204085257,0.866,595.49,594.4,0.33647375]
[1741204086860,0.866,595.49,594.48,1.48803054]
[1741204087959,0.866,595.49,594.49,0.33642281]
[1741204090360,0.866,595.49,594.52,1.48803054]
[1741204090563,0.866,595.49,594.53,0.33640018]
[1741204092869,0.95531134,595.79,594.53,0.33640018]
[1741204093165,0.95531134,595.78,594.53,0.33640018]
[1741204093361,0.95531134,595.77,594.53,0.33640018]
[1741204094165,1.23941362,595.76,594.53,0.33640018]
[1741204094768,1.23941362,595.75,594.53,0.33640018]
[1741204095661,1.23941362,595.74,594.53,0.33640018]